fUST/lending_fUST_20250901
["ID","MTS","AMOUNT","RATE_DAILY","PERIOD"]
[382702402,1756713043140,-480.0,0.00014281,2]
[382702405,1756713043149,-480.0,0.00014281,2]
[382702407,1756713043159,-480.0,0.00014281,2]
[382702409,1756713043169,-480.0,0.00014281,2]
[382702410,1756713043178,-1006.03,0.00014281,2]
[382702411,1756713043188,-490.71,0.00014281,2]
[382702412,1756713043197,-817.18,0.00014281,2]
[382702413,1756713043206,-480.0,0.00014281,2]
[382702414,1756713043215,-480.0,0.00014281,2]
[382702416,1756713043225,-480.0,0.00014281,2]
[382702417,1756713043234,-611.36,0.00014281,2]
[382702418,1756713043243,-480.0,0.00014281,2]
[382702419,1756713043252,-480.0,0.00014281,2]
[382702420,1756713043262,-728.18,0.00014281,2]
[382702421,1756713043271,-450.19778991,0.00014281,2]
[382702422,1756713043280,-480.0,0.00014281,2]
[382702423,1756713043290,-575.14,0.00014281,2]
[382702424,1756713043299,-576.98,0.00014281,2]
[382702425,1756713043308,-611.01,0.00014281,2]
[382702426,1756713043317,-746.06,0.00014281,2]
[382702427,1756713043327,-480.0,0.00014281,2]
[382702428,1756713043336,-508.89,0.00014281,2]
[382702429,1756713043346,-480.0,0.00014281,2]
[382702430,1756713043355,-480.0,0.00014281,2]
[382702431,1756713043365,-480.0,0.00014281,2]
[382702432,1756713043374,-480.0,0.00014281,2]
[382702433,1756713043384,-658.54,0.00014281,2]
[382702434,1756713043393,-4128.54,0.00014281,2]
[382702435,1756713043402,-498.73,0.00014281,2]
[382702436,1756713043413,-480.0,0.00014281,2]
[382702437,1756713043423,-893.1,0.00014281,2]
[382702438,1756713043432,-539.37,0.00014281,2]
[382702439,1756713043441,-480.0,0.00014281,2]
[382702440,1756713043450,-1866.44,0.00014281,2]
[382702441,1756713043459,-500.0,0.00014281,2]
[382702442,1756713043469,-500.0,0.00014281,2]
[382702443,1756713043478,-500.0,0.00014281,2]
[382702444,1756713043487,-480.0,0.00014281,2]
[382702445,1756713043496,-480.0,0.00014281,2]
[382702446,1756713043506,-424.99137622,0.00014281,2]
[382702447,1756713043515,-480.0,0.00014281,2]
[382702448,1756713043525,-818.43,0.00014281,2]
[382702449,1756713043534,-679.52,0.00014281,2]
[382702450,1756713043544,-480.0,0.00014281,2]
[382702451,1756713043553,-480.0,0.00014281,2]
[382702452,1756713043562,-588.45,0.00014281,2]
[382702453,1756713043571,-740.82,0.00014281,2]
[382702454,1756713043580,-4074.15,0.00014281,2]
[382702455,1756713043590,-883.03,0.00014281,2]
[382702456,1756713043599,-480.0,0.00014281,2]
[382702457,1756713043609,-645.14,0.00014281,2]
[382702458,1756713043618,-886.09,0.00014281,2]
[382702459,1756713043627,-3625.38,0.00014281,2]
[382702460,1756713043636,-1178.7,0.00014281,2]
[382702461,1756713043645,-480.0,0.00014281,2]
[382702462,1756713043655,-480.0,0.00014281,2]
[382702463,1756713043665,-534.29,0.00014281,2]
[382702464,1756713043675,-523.29,0.00014281,2]
[382702465,1756713043685,-2996.48,0.00014281,2]
[382702466,1756713043695,-529.08,0.00014281,2]
[382702467,1756713043705,-480.0,0.00014281,2]
[382702468,1756713043715,-1492.35,0.00014281,2]
[382702469,1756713043725,-738.64,0.00014281,2]
[382702470,1756713043735,-163.96600046,0.00014281,2]
[382702472,1756713043746,-514.38,0.00014281,2]
[382702474,1756713043756,-1105.77,0.00014281,2]
[382702475,1756713043766,-480.0,0.00014281,2]
[382702476,1756713043776,-480.0,0.00014281,2]
[382702477,1756713043785,-1135.63,0.00014281,2]
[382702478,1756713043794,-668.52,0.00014281,2]
[382702479,1756713043804,-480.0,0.00014281,2]
[382702480,1756713043813,-915.41,0.00014281,2]
[382702481,1756713043822,-931.92,0.00014281,2]
[382702482,1756713043831,-647.49,0.00014281,2]
[382702483,1756713043840,-481.71634681,0.00014281,2]
[382702484,1756713043850,-480.0,0.00014281,2]
[382702485,1756713043860,-500.0,0.00014281,2]
[382702486,1756713043870,-534.64,0.00014282,2]
[382702487,1756713043879,-480.0,0.00014282,2]
[382702488,1756713043889,-480.0,0.00014282,2]
[382702489,1756713043899,-480.0,0.00014282,2]
[382702490,1756713043910,-480.0,0.00014282,2]
[382702491,1756713043919,-480.0,0.00014282,2]
[382702492,1756713043929,-480.0,0.00014282,2]
[382702493,1756713043938,-480.0,0.00014282,2]
[382702494,1756713043947,-480.0,0.00014282,2]
[382702495,1756713043959,-302.14462558,0.00014282,2]
[382702496,1756713043969,-480.0,0.00014282,2]
[382702497,1756713043978,-654.83,0.00014282,2]
[382702498,1756713043988,-273.37644596,0.00014282,2]
[382702499,1756713043997,-931.93,0.00014282,2]
[382702500,1756713044006,-819.86,0.00014282,2]
[382702501,1756713044016,-480.0,0.00014282,2]
[382702502,1756713044025,-480.0,0.00014282,2]
[382702503,1756713044035,-570.61466168,0.00014282,2]
[382702504,1756713044045,-480.0,0.00014282,2]
[382702505,1756713044055,-480.0,0.00014282,2]
[382702506,1756713044064,-480.0,0.00014282,2]
[382702507,1756713044074,-480.0,0.00014282,2]
[382702508,1756713044083,-480.0,0.00014282,2]
[382702509,1756713044092,-480.0,0.00014282,2]
[382702510,1756713044102,-480.0,0.00014282,2]
[382702511,1756713044111,-480.0,0.00014282,2]
[382702512,1756713044120,-480.0,0.00014282,2]
[382702513,1756713044130,-783.64,0.00014282,2]
[382702514,1756713044139,-480.0,0.00014282,2]
[382702515,1756713044149,-853.77,0.00014282,2]
[382702516,1756713044160,-480.0,0.00014282,2]
[382702517,1756713044169,-480.0,0.00014282,2]
[382702518,1756713044178,-480.0,0.00014282,2]
[382702519,1756713044188,-480.0,0.00014282,2]
[382702520,1756713044197,-924.05,0.00014282,2]
[382702521,1756713044206,-480.0,0.00014282,2]
[382702522,1756713044216,-777.02,0.00014282,2]
[382702523,1756713044225,-480.0,0.00014282,2]
[382702524,1756713044235,-2364.19,0.00014282,2]
[382702525,1756713044244,-480.0,0.00014282,2]
[382702526,1756713044254,-480.0,0.00014282,2]
[382702527,1756713044263,-521.59,0.00014282,2]
[382702528,1756713044273,-480.0,0.00014282,2]
[382702529,1756713044282,-709.48,0.00014282,2]
[382702530,1756713044291,-480.0,0.00014282,2]
[382702531,1756713044300,-480.0,0.00014282,2]
[382702532,1756713044309,-962.85,0.00014282,2]
[382702533,1756713044319,-480.0,0.00014282,2]
[382702534,1756713044328,-480.0,0.00014282,2]
[382702535,1756713044338,-480.0,0.00014282,2]
[382702536,1756713044347,-480.0,0.00014282,2]
[382702537,1756713044357,-480.0,0.00014282,2]
[382702538,1756713044366,-500.0,0.00014282,2]
[382702539,1756713044375,-500.0,0.00014282,2]
[382702540,1756713044384,-1281.61,0.00014282,2]
[382702541,1756713044394,-480.0,0.00014282,2]
[382702542,1756713044404,-861.09,0.00014282,2]
[382702543,1756713044415,-480.0,0.00014282,2]
[382702544,1756713044424,-480.0,0.00014282,2]
[382702545,1756713044433,-480.0,0.00014282,2]
[382702546,1756713044443,-868.89,0.00014282,2]
[382702547,1756713044452,-480.0,0.00014282,2]
[382702548,1756713044462,-480.0,0.00014282,2]
[382702549,1756713044472,-480.0,0.00014282,2]
[382702550,1756713044482,-480.0,0.00014282,2]
[382702551,1756713044493,-480.0,0.00014282,2]
[382702552,1756713044502,-480.0,0.00014283,2]
[382702553,1756713044511,-480.0,0.00014283,2]
[382702554,1756713044521,-480.0,0.00014283,2]
[382702555,1756713044530,-775.08,0.00014283,2]
[382702556,1756713044540,-480.0,0.00014283,2]
[382702557,1756713044549,-480.0,0.00014283,2]
[382702558,1756713044558,-480.0,0.00014283,2]
[382702559,1756713044568,-480.0,0.00014283,2]
[382702560,1756713044577,-480.0,0.00014283,2]
[382702561,1756713044587,-480.0,0.00014283,2]
[382702562,1756713044596,-480.0,0.00014283,2]
[382702563,1756713044605,-480.0,0.00014283,2]
[382702564,1756713044614,-578.13,0.00014283,2]
[382702565,1756713044624,-539.64625156,0.00014283,2]
[382702566,1756713044633,-480.0,0.00014283,2]
[382702567,1756713044642,-480.0,0.00014283,2]
[382702568,1756713044651,-480.0,0.00014283,2]
[382702569,1756713044662,-480.0,0.00014283,2]
[382702570,1756713044671,-480.0,0.00014283,2]
[382702571,1756713044680,-480.0,0.00014283,2]
[382702572,1756713044690,-480.0,0.00014283,2]
[382702573,1756713044699,-480.0,0.00014283,2]
[382702574,1756713044709,-480.0,0.00014283,2]
[382702575,1756713044718,-480.0,0.00014283,2]
[382702576,1756713044727,-480.0,0.00014283,2]
[382702577,1756713044737,-480.0,0.00014283,2]
[382702578,1756713044746,-678.2,0.00014283,2]
[382702579,1756713044755,-480.0,0.00014283,2]
[382702580,1756713044764,-480.0,0.00014283,2]
[382702581,1756713044774,-603.98,0.00014283,2]
[382702582,1756713044783,-826.65,0.00014283,2]
[382702583,1756713044792,-480.0,0.00014283,2]
[382702584,1756713044802,-900.28,0.00014283,2]
[382702585,1756713044811,-480.0,0.00014283,2]
[382702586,1756713044820,-480.0,0.00014283,2]
[382702587,1756713044829,-480.0,0.00014283,2]
[382702588,1756713044839,-636.96,0.00014283,2]
[382702589,1756713044848,-480.0,0.00014283,2]
[382702590,1756713044857,-480.0,0.00014283,2]
[382702591,1756713044867,-480.0,0.00014283,2]
[382702592,1756713044876,-480.0,0.00014283,2]
[382702593,1756713044885,-498.25,0.00014283,2]
[382702594,1756713044895,-480.0,0.00014283,2]
[382702595,1756713044904,-480.0,0.00014283,2]
[382702596,1756713044915,-480.0,0.00014283,2]
[382702597,1756713044924,-641.69,0.00014283,2]
[382702598,1756713044933,-480.0,0.00014283,2]
[382702599,1756713044943,-480.0,0.00014283,2]
[382702600,1756713044952,-650.61,0.00014283,2]
[382702601,1756713044966,-480.0,0.00014283,2]
[382702602,1756713044975,-480.0,0.00014283,2]
[382702603,1756713044985,-480.0,0.00014283,2]
[382702604,1756713044995,-500.0,0.00014283,2]
[382702605,1756713045005,-500.0,0.00014283,2]
[382702606,1756713045015,-165.06491375,0.00014283,2]
[382702607,1756713045024,-645.69,0.00014283,2]
[382702608,1756713045035,-941.64,0.00014283,2]
[382702609,1756713045044,-1151.63,0.00014283,2]
[382702610,1756713045054,-480.0,0.00014283,2]
[382702611,1756713045063,-521.88,0.00014283,2]
[382702612,1756713045072,-480.0,0.00014283,2]
[382702613,1756713045082,-480.0,0.00014283,2]
[382702614,1756713045091,-480.0,0.00014283,2]
[382702615,1756713045100,-480.0,0.00014283,2]
[382702616,1756713045109,-480.0,0.00014283,2]
[382702617,1756713045118,-480.0,0.00014283,2]
[382702618,1756713045127,-480.0,0.00014283,2]
[382702619,1756713045136,-480.0,0.00014283,2]
[382702620,1756713045145,-480.0,0.00014283,2]
[382702621,1756713045155,-480.0,0.00014283,2]
[382702622,1756713045165,-480.0,0.00014284,2]
[382702623,1756713045175,-480.0,0.00014284,2]
[382702624,1756713045184,-543.36,0.00014284,2]
[382702625,1756713045193,-585.81,0.00014284,2]
[382702626,1756713045202,-782.02,0.00014284,2]
[382702627,1756713045211,-480.0,0.00014284,2]
[382702628,1756713045220,-480.0,0.00014284,2]
[382702629,1756713045229,-480.0,0.00014284,2]
[382702630,1756713045238,-480.0,0.00014284,2]
[382702631,1756713045248,-480.0,0.00014285,2]
[382702632,1756713045257,-480.0,0.00014285,2]
[382702633,1756713045266,-480.0,0.00014285,2]
[382702634,1756713045275,-507.0,0.00014329,2]
[382702635,1756713045285,-11366.76240249,0.00014345,2]
[382702636,1756713045294,-160.0,0.00014345,2]
[382702637,1756713045304,-160.0,0.00014345,2]
[382702638,1756713045313,-530.14184084,0.00014345,2]
[382702639,1756713045322,-160.0,0.00014345,2]
[382702640,1756713045331,-217.44302069,0.00014345,2]
[382702641,1756713045341,-160.0,0.00014345,2]
[382702642,1756713045350,-846.10922732,0.00014345,2]
[382702643,1756713045360,-160.0,0.00014345,2]
[382702644,1756713045369,-232.83393981,0.00014345,2]
[382702645,1756713045378,-425.82406011,0.00014345,2]
[382702646,1756713045388,-160.0,0.00014345,2]
[382702647,1756713045397,-160.0,0.00014345,2]
[382702648,1756713045407,-160.0,0.00014345,2]
[382702649,1756713045416,-417.15472785,0.00014345,2]
[382702650,1756713045426,-627.58930043,0.00014351,2]
[382702651,1756713045435,-2510.35720171,0.00014351,2]
[382702652,1756713045444,-5642.65540015,0.00014351,2]
[382702653,1756713045453,-507.0,0.00014358,2]
[382702654,1756713045463,-507.0,0.00014377,2]
[382702655,1756713045472,-1087.63,0.00014459,2]
[382702656,1756713045481,-151.0,0.00014492,2]
[382702657,1756713045491,-151.0,0.00014492,2]
[382702658,1756713045500,-151.0,0.00014492,2]
[382702659,1756713045510,-163.117839,0.00014492,2]
[382702660,1756713045519,-155.38,0.00014535,2]
[382702661,1756713045528,-155.38,0.00014535,2]
[382702662,1756713045538,-155.35,0.00014535,2]
[382702663,1756713045547,-480.0,0.00014553,2]
[382702664,1756713045557,-659.22,0.00014554,2]
[382702665,1756713045566,-480.0,0.00014554,2]
[382702666,1756713045575,-833.78,0.00014554,2]
[382702667,1756713045585,-480.0,0.00014554,2]
[382702668,1756713045594,-480.0,0.00014554,2]
[382702669,1756713045604,-480.0,0.00014554,2]
[382702670,1756713045613,-480.0,0.00014554,2]
[382702671,1756713045622,-480.0,0.00014554,2]
[382702672,1756713045631,-480.0,0.00014554,2]
[382702673,1756713045640,-480.0,0.00014554,2]
[382702674,1756713045650,-1571.87,0.00014554,2]
[382702675,1756713045664,-480.0,0.00014554,2]
[382702676,1756713045673,-480.0,0.00014554,2]
[382702677,1756713045682,-868.27,0.00014554,2]
[382702678,1756713045692,-480.0,0.00014554,2]
[382702679,1756713045701,-480.0,0.00014554,2]
[382702680,1756713045711,-765.05,0.00014554,2]
[382702681,1756713045721,-480.0,0.00014554,2]
[382702682,1756713045730,-480.0,0.00014554,2]
[382702683,1756713045740,-480.0,0.00014554,2]
[382702684,1756713045750,-480.0,0.00014554,2]
[382702685,1756713045759,-480.0,0.00014554,2]
[382702686,1756713045769,-542.41,0.00014554,2]
[382702687,1756713045779,-1318.45,0.00014554,2]
[382702688,1756713045790,-480.0,0.00014554,2]
[382702689,1756713045800,-480.0,0.00014554,2]
[382702690,1756713045809,-656.87,0.00014554,2]
[382702691,1756713045819,-912.91,0.00014554,2]
[382702692,1756713045829,-1348.01,0.00014554,2]
[382702693,1756713045838,-480.0,0.00014554,2]
[382702694,1756713045848,-596.3,0.00014554,2]
[382702695,1756713045858,-582.31,0.00014554,2]
[382702696,1756713045867,-480.0,0.00014555,2]
[382702697,1756713045877,-480.0,0.00014555,2]
[382702698,1756713045887,-480.0,0.00014555,2]
[382702699,1756713045896,-654.78,0.00014555,2]
[382702700,1756713045906,-682.02,0.00014555,2]
[382702701,1756713045917,-747.97,0.00014555,2]
[382702702,1756713045926,-483.58,0.00014555,2]
[382702703,1756713045936,-251.99158348,0.00014555,2]
[382702704,1756713045945,-480.0,0.00014555,2]
[382702705,1756713045958,-480.0,0.00014555,2]
[382702706,1756713045968,-480.0,0.00014555,2]
[382702707,1756713045977,-480.0,0.00014555,2]
[382702708,1756713045987,-1006.03,0.00014555,2]
[382702709,1756713045997,-490.71,0.00014555,2]
[382702710,1756713046006,-817.18,0.00014555,2]
[382702711,1756713046016,-480.0,0.00014555,2]
[382702712,1756713046025,-480.0,0.00014555,2]
[382702713,1756713046035,-480.0,0.00014555,2]
[382702714,1756713046044,-611.36,0.00014555,2]
[382702715,1756713046054,-480.0,0.00014555,2]
[382702716,1756713046064,-480.0,0.00014555,2]
[382702717,1756713046074,-728.18,0.00014555,2]
[382702718,1756713046083,-480.0,0.00014555,2]
[382702719,1756713046093,-575.14,0.00014555,2]
[382702720,1756713046103,-576.98,0.00014555,2]
[382702721,1756713046112,-611.01,0.00014555,2]
[382702722,1756713046122,-746.06,0.00014555,2]
[382702723,1756713046132,-480.0,0.00014555,2]
[382702724,1756713046143,-508.89,0.00014555,2]
[382702725,1756713046152,-480.0,0.00014555,2]
[382702726,1756713046163,-480.0,0.00014555,2]
[382702727,1756713046173,-480.0,0.00014555,2]
[382702728,1756713046182,-658.54,0.00014555,2]
[382702729,1756713046192,-4128.54,0.00014555,2]
[382702730,1756713046201,-498.73,0.00014555,2]
[382702731,1756713046211,-480.0,0.00014555,2]
[382702732,1756713046220,-893.1,0.00014555,2]
[382702733,1756713046229,-539.37,0.00014555,2]
[382702734,1756713046239,-480.0,0.00014555,2]
[382702735,1756713046248,-1866.44,0.00014555,2]
[382702736,1756713046258,-480.0,0.00014555,2]
[382702737,1756713046268,-480.0,0.00014555,2]
[382702738,1756713046277,-480.0,0.00014555,2]
[382702739,1756713046287,-818.43,0.00014555,2]
[382702740,1756713046296,-679.52,0.00014555,2]
[382702741,1756713046306,-480.0,0.00014555,2]
[382702742,1756713046316,-480.0,0.00014555,2]
[382702743,1756713046326,-588.45,0.00014555,2]
[382702744,1756713046335,-151.0,0.00014555,2]
[382702745,1756713046345,-151.0,0.00014555,2]
[382702746,1756713046354,-740.82,0.00014555,2]
[382702748,1756713046535,-4074.15,0.00014555,2]
[382702749,1756713046546,-883.03,0.00014555,2]
[382702750,1756713046556,-480.0,0.00014555,2]
[382702751,1756713046566,-645.14,0.00014555,2]
[382702752,1756713046576,-886.09,0.00014555,2]
[382702753,1756713046586,-3625.38,0.00014555,2]
[382702754,1756713046595,-151.0,0.00014555,2]
[382702755,1756713046605,-1178.7,0.00014555,2]
[382702756,1756713046614,-480.0,0.00014555,2]
[382702757,1756713046624,-480.0,0.00014555,2]
[382702758,1756713046633,-523.29,0.00014555,2]
[382702759,1756713046642,-534.29,0.00014555,2]
[382702760,1756713046651,-2996.48,0.00014555,2]
[382702761,1756713046663,-529.08,0.00014555,2]
[382702762,1756713046672,-480.0,0.00014555,2]
[382702763,1756713046682,-1492.35,0.00014555,2]
[382702764,1756713046692,-738.64,0.00014555,2]
[382702765,1756713046702,-514.38,0.00014555,2]
[382702766,1756713046712,-1105.77,0.00014555,2]
[382702768,1756713046723,-480.0,0.00014555,2]
[382702770,1756713046732,-480.0,0.00014555,2]
[382702771,1756713046741,-1135.63,0.00014555,2]
[382702772,1756713046751,-668.52,0.00014555,2]
[382702773,1756713046761,-480.0,0.00014555,2]
[382702774,1756713046772,-915.41,0.00014555,2]
[382702775,1756713046782,-931.92,0.00014555,2]
[382702776,1756713046791,-898.627856,0.00014555,2]
[382702778,1756713046801,-898.627856,0.00014555,2]
[382702779,1756713046811,-151.0,0.00014555,2]
[382702780,1756713046821,-647.49,0.00014555,2]
[382702781,1756713046831,-898.627856,0.00014555,2]
[382702782,1756713046841,-480.0,0.00014555,2]
[382702783,1756713046850,-898.627856,0.00014555,2]
[382702784,1756713046860,-534.64,0.00014556,2]
[382702785,1756713046870,-480.0,0.00014556,2]
[382702786,1756713046880,-480.0,0.00014556,2]
[382702787,1756713046891,-480.0,0.00014556,2]
[382702788,1756713046900,-480.0,0.00014556,2]
[382702789,1756713046912,-480.0,0.00014556,2]
[382702790,1756713046921,-480.0,0.00014556,2]
[382702791,1756713046931,-480.0,0.00014556,2]
[382702793,1756713046941,-480.0,0.00014556,2]
[382702795,1756713046951,-480.0,0.00014556,2]
[382702797,1756713046965,-654.83,0.00014556,2]
[382702798,1756713046975,-931.93,0.00014556,2]
[382702799,1756713046985,-819.86,0.00014556,2]
[382702800,1756713046999,-480.0,0.00014556,2]
[382702801,1756713047008,-480.0,0.00014556,2]
[382702802,1756713047018,-480.0,0.00014556,2]
[382702803,1756713047028,-480.0,0.00014556,2]
[382702804,1756713047039,-480.0,0.00014556,2]
[382702805,1756713047048,-480.0,0.00014556,2]
[382702806,1756713047057,-480.0,0.00014556,2]
[382702807,1756713047067,-480.0,0.00014556,2]
[382702808,1756713047078,-480.0,0.00014556,2]
[382702809,1756713047087,-480.0,0.00014556,2]
[382702810,1756713047097,-480.0,0.00014556,2]
[382702811,1756713047106,-783.64,0.00014556,2]
[382702813,1756713047116,-480.0,0.00014556,2]
[382702814,1756713047126,-853.77,0.00014556,2]
[382702815,1756713047135,-480.0,0.00014556,2]
[382702816,1756713047145,-480.0,0.00014556,2]
[382702817,1756713047155,-480.0,0.00014556,2]
[382702818,1756713047165,-480.0,0.00014556,2]
[382702819,1756713047175,-924.05,0.00014556,2]
[382702820,1756713047185,-480.0,0.00014556,2]
[382702821,1756713047195,-777.02,0.00014556,2]
[382702822,1756713047205,-480.0,0.00014556,2]
[382702823,1756713047215,-2364.19,0.00014556,2]
[382702824,1756713047224,-480.0,0.00014556,2]
[382702825,1756713047234,-480.0,0.00014556,2]
[382702826,1756713047244,-521.59,0.00014556,2]
[382702827,1756713047253,-480.0,0.00014556,2]
[382702828,1756713047263,-709.48,0.00014556,2]
[382702829,1756713047273,-480.0,0.00014556,2]
[382702830,1756713047282,-480.0,0.00014556,2]
[382702831,1756713047292,-962.85,0.00014556,2]
[382702832,1756713047301,-480.0,0.00014556,2]
[382702833,1756713047311,-480.0,0.00014556,2]
[382702834,1756713047321,-480.0,0.00014556,2]
[382702835,1756713047331,-597.09570547,0.00014556,2]
[382702836,1756713047340,-480.0,0.00014556,2]
[382702837,1756713047350,-1281.61,0.00014556,2]
[382702838,1756713047360,-480.0,0.00014556,2]
[382702839,1756713047370,-861.09,0.00014556,2]
[382702840,1756713047379,-480.0,0.00014556,2]
[382702841,1756713047389,-480.0,0.00014556,2]
[382702842,1756713047398,-480.0,0.00014556,2]
[382702843,1756713047408,-868.89,0.00014556,2]
[382702844,1756713047418,-480.0,0.00014556,2]
[382702845,1756713047428,-480.0,0.00014556,2]
[382702846,1756713047437,-480.0,0.00014556,2]
[382702847,1756713047447,-480.0,0.00014556,2]
[382702848,1756713047457,-480.0,0.00014556,2]
[382702849,1756713047467,-480.0,0.00014557,2]
[382702850,1756713047477,-480.0,0.00014557,2]
[382702851,1756713047487,-480.0,0.00014557,2]
[382702852,1756713047496,-775.08,0.00014557,2]
[382702853,1756713047506,-480.0,0.00014557,2]
[382702854,1756713047515,-480.0,0.00014557,2]
[382702855,1756713047524,-480.0,0.00014557,2]
[382702856,1756713047534,-480.0,0.00014557,2]
[382702857,1756713047544,-480.0,0.00014557,2]
[382702858,1756713047553,-480.0,0.00014557,2]
[382702859,1756713047563,-480.0,0.00014557,2]
[382702860,1756713047572,-480.0,0.00014557,2]
[382702861,1756713047583,-578.13,0.00014557,2]
[382702862,1756713047592,-480.0,0.00014557,2]
[382702863,1756713047602,-480.0,0.00014557,2]
[382702864,1756713047612,-480.0,0.00014557,2]
[382702865,1756713047621,-480.0,0.00014557,2]
[382702866,1756713047630,-480.0,0.00014557,2]
[382702867,1756713047639,-480.0,0.00014557,2]
[382702868,1756713047649,-480.0,0.00014557,2]
[382702869,1756713047660,-480.0,0.00014557,2]
[382702870,1756713047670,-151.0,0.00014557,2]
[382702871,1756713047679,-480.0,0.00014557,2]
[382702872,1756713047689,-480.0,0.00014557,2]
[382702873,1756713047699,-480.0,0.00014557,2]
[382702874,1756713047708,-151.0,0.00014557,2]
[382702875,1756713047718,-480.0,0.00014557,2]
[382702876,1756713047728,-678.2,0.00014557,2]
[382702877,1756713047737,-480.0,0.00014557,2]
[382702878,1756713047747,-480.0,0.00014557,2]
[382702879,1756713047756,-603.98,0.00014557,2]
[382702880,1756713047766,-826.65,0.00014557,2]
[382702881,1756713047775,-480.0,0.00014557,2]
[382702882,1756713047785,-900.28,0.00014557,2]
[382702883,1756713047795,-480.0,0.00014557,2]
[382702884,1756713047804,-480.0,0.00014557,2]
[382702885,1756713047814,-480.0,0.00014557,2]
[382702886,1756713047823,-636.96,0.00014557,2]
[382702887,1756713047833,-480.0,0.00014557,2]
[382702888,1756713047843,-480.0,0.00014557,2]
[382702889,1756713047853,-480.0,0.00014557,2]
[382702890,1756713047862,-480.0,0.00014557,2]
[382702891,1756713047872,-498.25,0.00014557,2]
[382702892,1756713047881,-480.0,0.00014557,2]
[382702893,1756713047891,-480.0,0.00014557,2]
[382702894,1756713047900,-480.0,0.00014557,2]
[382702895,1756713047910,-641.69,0.00014557,2]
[382702896,1756713047921,-480.0,0.00014557,2]
[382702897,1756713047931,-480.0,0.00014557,2]
[382702898,1756713047941,-650.61,0.00014557,2]
[382702899,1756713047951,-480.0,0.00014557,2]
[382702900,1756713047966,-480.0,0.00014557,2]
[382702901,1756713047976,-480.0,0.00014557,2]
[382702902,1756713047987,-645.69,0.00014557,2]
[382702903,1756713047997,-941.64,0.00014557,2]
[382702904,1756713048007,-1151.63,0.00014557,2]
[382702905,1756713048016,-569.94630896,0.00014557,2]
[382702906,1756713048027,-521.88,0.00014557,2]
[382702907,1756713048036,-294.21253812,0.00014557,2]
[382702908,1756713048046,-480.0,0.00014557,2]
[382702909,1756713048056,-151.0,0.00014557,2]
[382702910,1756713048066,-480.0,0.00014557,2]
[382702911,1756713048076,-480.0,0.00014557,2]
[382702912,1756713048086,-480.0,0.00014557,2]
[382702913,1756713048096,-480.0,0.00014557,2]
[382702914,1756713048106,-480.0,0.00014557,2]
[382702915,1756713048116,-480.0,0.00014557,2]
[382702916,1756713048126,-480.0,0.00014557,2]